Cogmind - Beta 12 @@@ ROGUE MODE // 2023.05.10 @ 23:20:36 Player: Eskild Result: Destroyed by Y-45 Defender with Beam Rifle Performance ------------- Evolutions (0) 0 Regions Visited (2) 400 Robots Destroyed (12) 60 Value Destroyed (341) 341 Prototype IDs (0) 0 Alien Tech Used (0) 0 Bonus (0) 0 TOTAL SCORE: 801 Bonus ------- None Cogmind --------- Core Integrity 0/250 Matter 282/300 Energy 225/250 System Corruption 0% Temperature Critical (513) Movement Core (700) Ox13 Location -10/Mines Parts ------- > --- POWER (1) -------- Ion Engine > --- PROPULSION (2) --- (None) > --- UTILITY (2) ------ Medium Storage Unit Large Storage Unit > --- WEAPON (2) ------- Particle Gun Particle Cannon > --- INVENTORY (15) --- Ion Engine Light Ion Engine Light Treads Heat Sink Small Storage Unit Small Storage Unit Terrain Scanner Medium Armor Plating Medium Armor Plating Medium Armor Plating Medium Armor Plating Particle Cannon Peak State ------------ > --- POWER ------------ Ion Engine > --- PROPULSION ------- Light Treads Light Treads > --- UTILITY ---------- Small Storage Unit Large Storage Unit > --- WEAPON ----------- Particle Cannon Heavy Assault Rifle > --- INVENTORY -------- Light Ion Engine Wheel Wheel Heat Sink Small Storage Unit Medium Armor Plating Medium Armor Plating Medium Armor Plating Medium Armor Plating Medium Laser Particle Gun Particle Cannon Particle Cannon [Rating: 11] Favorites ----------- Power Ion Engine Engine Ion Engine Propulsion Light Treads Treads Light Treads Wheel Wheel Utility Large Storage Unit Storage Large Storage Unit Weapon Particle Cannon Energy Gun Medium Laser Energy Cannon Particle Cannon Ballistic Gun Heavy Assault Rifle Build | -11 -10 -10 ------- Run | Jun Mat Min Slots Evolved . | . . . Power . | . . . Propulsion . | . . . Utility . | . . . Weapon . | . . . Parts Attached 17 | 7 5 5 Power 4 | 2 1 1 Engine 4 | 2 1 1 Core . | . . . Reactor . | . . . Propulsion 4 | 2 . 2 Treads 2 | 2 . . Leg . | . . . Wheel 2 | . . 2 Hover . | . . . Flight . | . . . Utility 3 | 1 2 . Device . | . . . Storage 3 | 1 2 . Processor . | . . . Hackware . | . . . Protection . | . . . Artifact . | . . . Weapon 6 | 2 2 2 Energy Gun 3 | 2 . 1 Energy Cannon 2 | . 1 1 Ballistic Gun 1 | . 1 . Ballistic Cannon . | . . . Launcher . | . . . Special Weapon . | . . . Impact Weapon . | . . . Slashing Weapon . | . . . Piercing Weapon . | . . . Special Melee Weapon . | . . . Unidentified Prototypes . | . . . Parts Lost 7 | . 3 4 Power 1 | . 1 . Propulsion 3 | . 1 2 Utility . | . . . Weapon 3 | . 1 2 Highest Loss Streak 2 | . 1 2 To Critical Strikes . | . . . Average Slot Usage (%) 94 | . 96 88 Engine 13 | . 13 14 Treads 18 | . 27 . Wheel 8 | . . 23 Storage 27 | . 27 28 Energy Gun 3 | . 5 1 Energy Cannon 11 | . 11 13 Ballistic Gun 9 | . 10 6 Naked Turns . | . . . Heaviest Build 42 | 14 42 42 Greatest Support 40 | 40 40 20 Greatest Overweight (x) 3 | 1 2 3 Average Overweight (x) . | . . 1 Largest Inventory Capacity 15 | 8 15 15 Average Capacity 13 | 7 14 15 Most Carried 15 | 4 15 15 Average Carried 9 | 2 9 13 Final Capacity 15 | 8 15 15 Final Carried 15 | 3 15 12 Class Distribution -------------------- 100% | Mutant Dominant Class ---------------- Mutant | -10/Materials Mutant | -10/Mines Resources | -11 -10 -10 ----------- Run | Jun Mat Min Matter Collected 371 | 206 129 36 Remotely . | . . . Salvage Created 412 | . 233 179 Parts 28 | . 17 11 Haulers Intercepted 1 | . 1 . Recyclers Shooed . | . . . Parts Field Recycled . | . . . Retrieved Matter . | . . . Parts Self-Destructed . | . . . Prevented . | . . . Kills | -11 -10 -10 ------- Run | Jun Mat Min Combat Hostiles Destroyed 11 | . 5 6 Melee 1 | . 1 . Guns 5 | . 2 3 Cannons 5 | . 2 3 Classes Destroyed 4 | . 2 2 Hauler 1 | . 1 . Swarmer 3 | . . 3 Grunt 7 | . 5 2 Sentry 1 | . . 1 Best Kill Streak 4 | . 4 4 Combat Bots Only 4 | . 2 4 Max Kills in Single Turn 2 | . 1 2 Gunslinging . | . . . Exploded . | . . . Melee 1 | . 1 . Uniques/NPCs Destroyed . | . . . Combat | -11 -10 -10 -------- Run | Jun Mat Min Damage Taken 1266 | . 786 480 Core 260 | . 157 103 Absorbed by Shields . | . . . Core Remaining (%) 100 | 100 . . Volleys Fired 41 | . 20 21 Largest 2 | . 2 2 Hottest 133 | . 91 133 Shots Fired 72 | . 38 34 Gun 41 | . 26 15 Cannon 31 | . 12 19 Launcher . | . . . Special . | . . . Kinetic 20 | . 12 8 Thermal 46 | . 20 26 Explosive . | . . . Electromagnetic 6 | . 6 . Robot Hit Streak 6 | . 3 6 Robot Miss Streak 5 | . 5 3 Penetration Max . | . . . Secondary Targets . | . . . Shots Hit Robots 37 | . 14 23 Core Hits 17 | . 8 9 Critical Kills . | . . . Critical Parts Destroyed . | . . . Critical Strikes 1 | . 1 . Burn 1 | . 1 . Melee Attacks . | . . . Impact . | . . . Slashing . | . . . Piercing . | . . . Sneak Attacks . | . . . Combat Hostiles . | . . . Follow-up Attacks . | . . . Damage Inflicted 725 | . 280 445 Guns 298 | . 141 157 Cannons 411 | . 123 288 Explosions . | . . . Melee . | . . . Ramming 16 | . 16 . Kinetic 156 | . 76 80 Thermal 527 | . 162 365 Explosive . | . . . Electromagnetic 26 | . 26 . Impact . | . . . Slashing . | . . . Piercing . | . . . Highest Corruption . | . . . Average Corruption . | . . . Corruption Purged . | . . . Corruption Blocked . | . . . Overload Shots . | . . . Overflow Damage . | . . . Projectiles . | . . . Explosions . | . . . Melee . | . . . Knockbacks . | . . . Impact . | . . . Kinetic . | . . . Secondary . | . . . Self-Inflicted Damage . | . . . Shots . | . . . Rammed 3 | . 3 . Targets Rammed 4 | . 4 . Kicked . | . . . Crushed 1 | . 1 . Highest Temperature 504 | . 283 504 Average Temperature 120 | . 107 140 Received Heat Transfer 645 | . 474 171 Effects 2 | . 1 1 Interference 1 | . 1 . Damage (minor) 1 | . . 1 Siege Activations . | . . . Robots Corrupted . | . . . Combat Hostiles . | . . . Parts Fried . | . . . Impact Corruptions . | . . . Robots Melted . | . . . Combat Hostiles . | . . . Parts Melted 3 | . 1 2 Heat Transferred 1110 | . 407 703 Parts Sabotaged . | . . . Parts Stolen . | . . . Parts Stripped . | . . . Power Chain Reactions . | . . . Missiles Intercepted . | . . . Alert | -11 -10 -10 ------- Run | Jun Mat Min Peak Influence 179 | . 139 179 Initial 49 | . . 49 Average 76 | . 72 121 Maximum Alert Level . | . . . Low Security (%) 100 | 100 100 100 Level 1 . | . . . Level 2 . | . . . Level 3 . | . . . Level 4 . | . . . Level 5 . | . . . High Security . | . . . Max Security . | . . . Squads Dispatched . | . . . Investigation . | . . . Extermination . | . . . Reinforcement . | . . . Assault . | . . . Garrison . | . . . Intercept . | . . . Searches Triggered . | . . . Construction Impeded . | . . . Haulers Reinforced . | . . . Active Scanning Responses . | . . . Cargo Convoy Interrupts . | . . . Stealth | -11 -10 -10 --------- Run | Jun Mat Min Distress Signals . | . . . Communications Jammed . | . . . Distress Signals . | . . . Times Spotted 16 | . 8 8 Peak Tracking Total 4 | . 3 4 Tactical Retreats 1 | . . 1 Traps | -11 -10 -10 ------- Run | Jun Mat Min Traps Triggered . | . . . Indirectly . | . . . Trap Hack Attempts . | . . . Triggered . | . . . Disarmed . | . . . Reprogrammed . | . . . Reused . | . . . Traps Extracted . | . . . Installed . | . . . Triggered . | . . . Machines | -11 -10 -10 ---------- Run | Jun Mat Min Machines Disabled . | . . . Max in Single Turn . | . . . Machines Repaired . | . . . Machines Sabotaged . | . . . Overloaded Fab Kills . | . . . Hacking | -11 -10 -10 --------- Run | Jun Mat Min Machines Accessed 2 | . 2 . Terminals 1 | . 1 . Fabricators . | . . . Repair Stations . | . . . Recycling Units 1 | . 1 . Scanalyzers . | . . . Garrison Access . | . . . Total Hacks 7 | . 7 . Successful 4 | . 4 . Failed 3 | . 3 . Catastrophic . | . . . Database Lockouts . | . . . Manual . | . . . Terminals 2 | . 2 . Fabricators . | . . . Repair Stations . | . . . Recycling Units 5 | . 5 . Scanalyzers . | . . . Garrison Access . | . . . Terminal Hacks 2 | . 2 . Branch Access Points 1 | . 1 . Zone Layout 1 | . 1 . Fabricator Hacks . | . . . Repair Station Hacks . | . . . Recycling Unit Hacks 2 | . 2 . Recycle Component 1 | . 1 . Retrieve Matter 1 | . 1 . Scanalyzer . | . . . Garrison Access Hacks . | . . . Unauthorized Hacks . | . . . Terminals . | . . . Fabricators . | . . . Repair Stations . | . . . Recycling Units . | . . . Scanalyzers . | . . . Garrison Access . | . . . Data Cores Recovered . | . . . Used . | . . . Hacking Detections 2 | . 2 . Full Trace Events 1 | . 1 . Feedback Events . | . . . Feedback Blocked . | . . . Robot Schematics Acquired . | . . . Robots Built . | . . . Authchips . | . . . Time . | . . . Total Robot Build Rating . | . . . Part Schematics Acquired . | . . . Parts Built . | . . . Authchips . | . . . Time . | . . . Total Part Build Rating . | . . . Parts Repaired . | . . . Time . | . . . Parts Recycled 1 | . 1 . Recycled Matter . | . . . Retrieved Matter . | . . . Retrieved Components . | . . . Parts Scanalyzed . | . . . Part Schematics Acquired . | . . . Parts Damaged . | . . . Bothacking | -11 -10 -10 ------------ Run | Jun Mat Min Used RIF Installer . | . . . Robots Hacked . | . . . Non-combat . | . . . Combat . | . . . Robot Hacks Applied . | . . . Relay Couplers Released . | . . . Fabnet Peak Effective % . | . . . Robots Rewired . | . . . Allies Hacked . | . . . Hacks Repelled . | . . . Allies | -11 -10 -10 -------- Run | Jun Mat Min Total Allies . | . . . Largest Group . | . . . Highest-Rated Group . | . . . Highest-Rated Ally . | . . . Total Orders . | . . . Ally Attacks . | . . . Total Damage . | . . . Kills . | . . . Allies Corrupted . | . . . Allies Melted . | . . . Intel | -11 -10 -10 ------- Run | Jun Mat Min Robot Analysis Total . | . . . Derelict Logs Recovered 1 | . . 1 Drone Launches . | . . . Drone Recoveries . | . . . Exploration | -11 -10 -10 ------------- Run | Jun Mat Min Turns Passed 669 | 88 388 193 Spaces Moved 357 | 51 177 129 Core 12 | 12 . . Treads 217 | 39 177 1 Legs . | . . . Wheels 128 | . . 128 Hover . | . . . Flight . | . . . Fastest Speed 50 | 50 160 95 Average Speed 143 | 142 171 104 Slowest Speed 320 | 160 320 320 Overloaded Moves . | . . . Propulsion Burnouts . | . . . Robots Hopped . | . . . Cave-ins Triggered . | . . . Exploration Rate (%) 27 | 5 28 48 Regions Visited 2 Branch Regions 1 Pre-discovered Areas . | . . . Known Exits Taken 1 | . 1 . Unknown Exits Taken 1 | 1 . . Scrap Searched . | . . . Spaces Dug . | . . . Terrain Destroyed . | . . . Melee . | . . . Projectile . | . . . AOE . | . . . Terrain Rammed . | . . . Walls Destroyed . | . . . Machines Disabled . | . . . Actions | -11 -10 -10 --------- Run | Jun Mat Min Total 442 | 66 221 155 Wait . | . . . Move 355 | 50 176 129 Hop . | . . . Pick Up 25 | 9 16 . Fast Attach . | . . . Attach 12 | 6 3 3 Detach . | . . . Swap 5 | 1 2 2 Drop . | . . . Fire 41 | . 20 21 Melee . | . . . Ram . | . . . Kick . | . . . Crush 4 | . 4 . Escape Stasis . | . . . Rewire . | . . . Trap . | . . . Miscellaneous . | . . . Route ------- -11/Junkyard -10/Materials -10/Mines History --------- Turn | Location | Event 51 | -11/Junkyard | Discovered new exit (range 15) 89 | -11/Junkyard | Entered Materials 104 | -10/Materials | Identified exit to Mines 306 | -10/Materials | Build established: Mutant 459 | -10/Materials | Core integrity fell below 50% 477 | -10/Materials | Entered Mines 486 | -10/Mines | Met a Derelict bent on vengeance 502 | -10/Mines | Learned Materials terminal intel 655 | -10/Mines | Core integrity fell below 20% 670 | -10/Mines | Destroyed by Y-45 Defender with Beam Rifle Last Messages --------------- Data stored: Materials terminal intel. Particle Cannon destroyed. S-10 Pest destroyed. R-06 Scavenger collects Lgt. Ion Engine. Hvy. Assault Rifle destroyed. R-06 Scavenger collects Flight Unit. G-34 Mercenary destroyed. R-06 Scavenger collects Flight Unit. S-10 Pest destroyed. R-06 Scavenger collects Lgt. Ion Engine. Acquired 20 matter. Acquired 16 matter. Critical hit (Burn: +37). Wheel destroyed. Critical hit (Burn: +37). Wheel destroyed. Heat Sink melted. Hvy. Assault Rifle melted. Y-45 Defender destroyed. Overheating: Particle Cannon damaged (-19). Map ----- +----------------------------------------------------+ | ?????????## ###??# #?????????????????????? | | ?????????# #### ##### #???????????????? | | ?????????# #???????????????? | | ?????????# #?????????????????????? | | ??? ### #?????????????????????? | | ??# ## ##?# #?????????????????????? | | ??######## ######?## #?????????????????????? | | ????????# #?????## ####??????????????????? | | ????????# ####### ##?????????????????? | | ????????# #?????????????????? | | ????????## ###########???????? | | ?????????############# ##??????? | | ?????????????????????## | | ??????????????????????# ### ####### | | ??????????????????????## ##?# #???????????????? | | ?????????????????###?### #??# #???????????????? | | ????????????????##!!## #??# #???????????????? | | ????????????????#"|! # #??# #???????????????? | | ????????????????# + ##??# #???????????????? | | ????????????????# +* ##???# #???????????????? | | ????????????????#"!! #%Y##???# #???????????????? | | ????????????????##!?##! #???? ????????????????? | | ???????????????????## #???? ????????????????? | | ???????????????????# #???? ????????????????? | | ???????????????????# ##??? ????????????????? | | ???????????????????## @ #??? ????????????????? | | ????????????????????## #?? ????????????????? | | ?????????????????????# #?? ????????????????? | | ?????????????????????## ##???????????????????? | | ??????????????????????#####????????????????????? | | ???????????????????????????????????????????????? | | ???????????????????????????????????????????????? | | ???????????????????????????????????????????????? | | | | | | | | | | | | | | | | | | | | | | | | | | | | | | | | | | | +----------------------------------------------------+ Best States ------------- Heat Dissipation 25 Energy Generation 10 Energy Capacity 250 Matter Stores 300 Matter Capacity 300 Sight Range 16 Terrain Scan Density 10 Evasion (%) 41 Recoil Reduction 2 Item Schematics ----------------- None Robot Schematics ------------------ None Fabricated ------------ Nothing Alien Tech Used ----------------- None Achievements -------------- None Challenges ------------ None Game ------ Seed TargetingSurveybotFrame Manual? 0 Play Time 00:08:42 Cumulative 10.4 hours Start 2023.05.10 @ 23:13:54 End 2023.05.10 @ 23:20:36 Sessions 1 Manual Loads 0 Difficulty Rogue Special Mode None Game No. 38 Rogue 32 Adventurer 6 Explorer 0 Win Type - Total 0 Types 0/0/0/0/0/0/0/0/0 Lore% 9 Gallery% 15 Achievement% 12 Wizard Run 0 Options --------- ASCII 0 Keyboard 0 Movement Mouse Keybinds 0 Fullscreen 1 Font 18/SmallcapsGlow Map View 76x50 Tactical HUD 0 Map Filters NONE Filters NONE Steam 1 RUN: 0236568b-7f60-481f-b658-9007b50d64f8